lending/lending_fUSD_20240809
["ID","MTS","AMOUNT","RATE_DAILY","PERIOD"]
[334559554,1723213854274,-273.310999,0.00011,2]
[334559555,1723213854284,-273.311003,0.00011,2]
[334559556,1723213854298,-151.0,0.00011,2]
[334559557,1723213854308,-151.0,0.00011,2]
[334559558,1723213854318,-151.0,0.00011,2]
[334559559,1723213854328,-151.0,0.00011,2]
[334559560,1723213854338,-151.0,0.00011,2]
[334559561,1723213854347,-151.0,0.00011,2]
[334559562,1723213854357,-151.0,0.00011,2]
[334559563,1723213854366,-151.0,0.00011,2]
[334559564,1723213854375,-152.778133,0.00011,2]
[334559565,1723213854385,-151.0,0.00011,2]
[334559566,1723213854394,-151.0,0.00011,2]
[334559567,1723213854403,-151.0,0.00011,2]
[334559568,1723213854414,-151.0,0.00011,2]
[334559569,1723213854425,-151.0,0.00011,2]
[334559570,1723213854435,-151.0,0.00011,2]
[334559571,1723213854444,-150.0,0.00011,2]
[334559572,1723213854455,-150.0,0.00011,2]
[334559573,1723213854464,-366.61282358,0.00011,2]
[334559574,1723213854474,-150.24131347,0.00011,2]
[334559575,1723213854484,-150.0,0.00011,2]
[334559576,1723213854494,-150.0,0.00011,2]
[334559577,1723213854506,-150.0,0.00011,2]
[334559578,1723213854515,-150.0,0.00011,2]
[334559579,1723213854525,-150.0,0.00011,2]
[334559580,1723213854535,-11138.5015994,0.00011008,2]
[334559581,1723213854549,-2055.7992962,0.00011008,2]
[334559582,1723213854559,-241.3440011,0.00011046,2]
[334559583,1723213854568,-156.50935054,0.00011046,2]
[334559584,1723213854578,-288.62616374,0.00011046,2]
[334559585,1723213854588,-155.09702023,0.00011046,2]
[334559586,1723213854597,-155.86645622,0.00011046,2]
[334559587,1723213854606,-155.13606578,0.00011046,2]
[334559588,1723213854615,-16763.40048862,0.00011105,2]
[334559589,1723213854625,-184.91385691,0.00011105,2]
[334559590,1723213854634,-184.51285978,0.00011105,2]
[334559591,1723213854643,-2457.76932111,0.00011105,2]
[334559592,1723213854652,-5851.02790323,0.00011105,2]
[334559593,1723213854662,-1144.3644022,0.00011105,2]
[334559594,1723213854671,-155.19016911,0.00011105,2]
[334559595,1723213854680,-1877.93763573,0.00011105,2]
[334559596,1723213854690,-290.44458116,0.00011105,2]
[334559597,1723213854699,-155.5623077,0.00011105,2]
[334559598,1723213854709,-155.0,0.00011105,2]
[334559599,1723213854719,-156.67933936,0.00011105,2]
[334559600,1723213854728,-359.33524996,0.00011105,2]
[334559601,1723213854737,-263.88091694,0.00011105,2]
[334559602,1723213854746,-364.83915995,0.00011105,2]
[334559603,1723213854756,-440.9041462,0.00011105,2]
[334559604,1723213854765,-200.28015479,0.00011105,2]
[334559605,1723213854774,-155.0,0.00011105,2]
[334559606,1723213854783,-203.31672366,0.00011105,2]
[334559607,1723213854797,-211.64285482,0.00011105,2]
[334559608,1723213854806,-200.01949892,0.00011105,2]
[334559609,1723213854815,-3031.69345987,0.00011105,2]
[334559610,1723213854825,-297.97567454,0.00011105,2]
[334559611,1723213854834,-155.22388228,0.00011105,2]
[334559612,1723213854844,-1184.28724088,0.00011105,2]
[334559613,1723213854853,-2145.43588228,0.00011105,2]
[334559614,1723213854862,-2341.29720318,0.00011105,2]
[334559615,1723213854872,-189.81173593,0.00011105,2]
[334559616,1723213854881,-1633.9796717,0.00011105,2]
[334559617,1723213854890,-159.50994837,0.00011105,2]
[334559618,1723213854899,-962.26073749,0.00011105,2]
[334559619,1723213854909,-15476.78696175,0.00011105,2]
[334559620,1723213854919,-10531.85661047,0.00011105,2]
[334559621,1723213854928,-155.0,0.00011105,2]
[334559622,1723213854938,-7000.0,0.00011105,2]
[334559623,1723213854947,-3978.80981577,0.00011105,2]
[334559624,1723213854956,-2835.44069884,0.00011105,2]
[334559625,1723213854965,-3081.5129697,0.00011105,2]
[334559626,1723213854975,-2210.44812185,0.00011105,2]
[334559627,1723213854984,-1725.0,0.00011105,2]
[334559628,1723213854994,-1297.9617252,0.00011105,2]
[334559629,1723213855003,-719.82594028,0.00011105,2]
[334559630,1723213855012,-1141.01656622,0.00011105,2]
[334559631,1723213855021,-155.12671459,0.00011105,2]
[334559632,1723213855031,-520.01591584,0.00011105,2]
[334559633,1723213855042,-299.16545724,0.00011105,2]
[334559634,1723213855051,-532.16633031,0.00011105,2]
[334559635,1723213855061,-600.60859268,0.00011105,2]
[334559636,1723213855070,-628.49894512,0.00011105,2]
[334559637,1723213855079,-493.49814527,0.00011105,2]
[334559638,1723213855089,-476.83882625,0.00011105,2]
[334559639,1723213855098,-723.23511172,0.00011105,2]
[334559640,1723213855108,-1076.55736569,0.00011105,2]
[334559641,1723213855117,-1052.96749869,0.00011105,2]
[334559642,1723213855219,-649.7091849,0.00011105,2]
[334559643,1723213855229,-203.37032912,0.00011105,2]
[334559644,1723213855238,-528.80773361,0.00011105,2]
[334559645,1723213855247,-265.37710214,0.00011105,2]
[334559646,1723213855256,-155.0932844,0.00011105,2]
[334559647,1723213855266,-306.58036996,0.00011105,2]
[334559648,1723213855275,-158.37733167,0.00011105,2]
[334559649,1723213855285,-241.71129158,0.00011105,2]
[334559650,1723213855297,-654.78918489,0.00011105,2]
[334559651,1723213855306,-380.24774441,0.00011105,2]
[334559652,1723213855317,-357.37097138,0.00011105,2]
[334559653,1723213855327,-309.22609826,0.00011105,2]
[334559654,1723213855336,-168.90666634,0.00011105,2]
[334559655,1723213855346,-155.06826554,0.00011105,2]
[334559656,1723213855355,-255.13733329,0.00011105,2]
[334559657,1723213855365,-522.14618603,0.00011105,2]
[334559658,1723213855375,-200.0,0.00011105,2]
[334559659,1723213855384,-155.10259214,0.00011105,2]
[334559660,1723213855394,-205.89433174,0.00011105,2]
[334559661,1723213855403,-367.78963166,0.00011105,2]
[334559662,1723213855416,-317.91292702,0.00011105,2]
[334559663,1723213855426,-155.13529192,0.00011105,2]
[334559664,1723213855436,-330.12618987,0.00011105,2]
[334559665,1723213855446,-206.72516919,0.00011105,2]
[334559666,1723213855456,-271.03452202,0.00011105,2]
[334559667,1723213855466,-155.70209994,0.00011105,2]
[334559668,1723213855475,-155.12362413,0.00011105,2]
[334559669,1723213855485,-348.31977934,0.00011105,2]
[334559670,1723213855495,-155.23328826,0.00011105,2]
[334559671,1723213855505,-401.16988804,0.00011105,2]
[334559672,1723213855514,-155.08969027,0.00011105,2]
[334559673,1723213855524,-155.0,0.00011105,2]
[334559674,1723213855534,-160.76915209,0.00011105,2]
[334559675,1723213855546,-155.12540211,0.00011105,2]
[334559676,1723213855555,-315.71365017,0.00011105,2]
[334559677,1723213855564,-155.1135814,0.00011105,2]
[334559678,1723213855573,-155.1137372,0.00011105,2]
[334559679,1723213855582,-155.09403201,0.00011105,2]
[334559680,1723213855591,-180.12841207,0.00011105,2]
[334559681,1723213855601,-155.33168519,0.00011105,2]
[334559682,1723213855610,-155.10409936,0.00011105,2]
[334559683,1723213855620,-267.38893394,0.00011105,2]
[334559684,1723213855629,-200.75365201,0.00011105,2]
[334559685,1723213855638,-155.061213,0.00011105,2]
[334559686,1723213855647,-314.24446807,0.00011105,2]
[334559687,1723213855657,-243.19980879,0.00011105,2]
[334559688,1723213855667,-245.90653923,0.00011105,2]
[334559689,1723213855676,-202.20688051,0.00011105,2]
[334559690,1723213855686,-298.33419464,0.00011105,2]
[334559691,1723213855695,-400.0,0.00011105,2]
[334559692,1723213855705,-155.16216363,0.00011105,2]
[334559693,1723213855715,-183.70776908,0.00011105,2]
[334559694,1723213855725,-155.16918934,0.00011105,2]
[334559695,1723213855734,-205.97533078,0.00011105,2]
[334559696,1723213855744,-155.55663043,0.00011105,2]
[334559697,1723213855754,-454.47653863,0.00011105,2]
[334559698,1723213855763,-258.11341529,0.00011105,2]
[334559699,1723213855773,-197.48554036,0.00011105,2]
[334559700,1723213855782,-218.86415663,0.00011105,2]
[334559701,1723213855795,-155.08429094,0.00011105,2]
[334559702,1723213855806,-248.98174394,0.00011105,2]
[334559703,1723213855815,-213.74741053,0.00011105,2]
[334559704,1723213855825,-164.65820981,0.00011105,2]
[334559705,1723213855836,-155.09286282,0.00011105,2]
[334559706,1723213855845,-203.49250923,0.00011105,2]
[334559707,1723213855854,-278.69320512,0.00011105,2]
[334559708,1723213855863,-155.14212625,0.00011105,2]
[334559709,1723213855873,-155.12359825,0.00011105,2]
[334559710,1723213855883,-3120.33367931,0.00011105,2]
[334559711,1723213855893,-688.04528701,0.00011105,2]
[334559712,1723213855903,-259.23504363,0.00011105,2]
[334559713,1723213855913,-195.11921071,0.00011105,2]
[334559714,1723213855923,-155.06745482,0.00011105,2]
[334559715,1723213855933,-155.0,0.00011105,2]
[334559716,1723213855943,-155.11473936,0.00011105,2]
[334559717,1723213855953,-3402.33422276,0.00011105,2]
[334559718,1723213855963,-594.81380735,0.00011105,2]
[334559719,1723213855973,-155.0,0.00011105,2]
[334559720,1723213855983,-200.99432863,0.00011105,4]
[334559721,1723213855993,-210.9584135,0.00011105,2]
[334559722,1723213856003,-156.21302556,0.00011105,2]
[334559723,1723213856012,-155.04712772,0.00011105,2]
[334559724,1723213856022,-401.61057102,0.00011105,2]
[334559725,1723213856031,-5402.53102393,0.00011105,2]
[334559726,1723213856042,-1500.0,0.00011105,2]
[334559727,1723213856057,-921.3480316,0.00011105,2]
[334559728,1723213856066,-1275.34900939,0.00011105,2]
[334559729,1723213856076,-174.2503181,0.00011105,2]
[334559730,1723213856085,-155.25638732,0.00011105,2]
[334559731,1723213856094,-198.98788786,0.00011105,2]
[334559732,1723213856104,-485.08340827,0.00011105,2]
[334559733,1723213856114,-155.0,0.00011105,2]
[334559734,1723213856124,-236.29328499,0.00011105,2]
[334559735,1723213856134,-155.0,0.00011105,2]
[334559736,1723213856144,-158.96766456,0.00011105,2]
[334559737,1723213856154,-225.0355549,0.00011105,2]
[334559738,1723213856163,-308.60108476,0.00011105,2]
[334559739,1723213856173,-1392.8661949,0.00011105,2]
[334559740,1723213856183,-155.0,0.00011105,2]
[334559741,1723213856193,-1405.79490401,0.00011105,2]
[334559742,1723213856203,-3904.35386503,0.00011105,2]
[334559743,1723213856213,-155.0,0.00011105,2]
[334559744,1723213856222,-547.69806277,0.00011105,2]
[334559745,1723213856233,-500.0,0.00011105,2]
[334559746,1723213856242,-155.36119301,0.00011105,2]
[334559747,1723213856252,-190.30460436,0.00011105,2]
[334559748,1723213856262,-438.81068454,0.00011105,2]
[334559749,1723213856271,-2000.0,0.0001111,2]
[334559750,1723213856281,-200.0,0.0001111,2]
[334559751,1723213856290,-200.0,0.0001111,2]
[334559752,1723213856304,-164.93,0.00011111,2]
[334559753,1723213856314,-366.61282358,0.00011141,2]
[334559754,1723213856324,-150.0,0.00011152,2]
[334559755,1723213856334,-179.23465511,0.00011173,2]
[334559756,1723213856343,-42729.83340101,0.00011186,2]
[334559757,1723213856353,-29518.85739505,0.00011186,2]
[334559758,1723213856363,-25310.66391755,0.00011186,2]
[334559759,1723213856372,-1960.42768157,0.00011221,2]
[334559760,1723213856382,-200.0,0.00011221,2]
[334559761,1723213856391,-200.0,0.00011221,2]
[334559762,1723213856400,-366.61282358,0.00011283,2]
[334559763,1723213856410,-150.0,0.00011304,2]
[334559764,1723213856422,-264.43209294,0.00011322,2]
[334559765,1723213856432,-200.0,0.00011333,2]
[334559766,1723213856442,-200.0,0.00011333,2]
[334559767,1723213856452,-366.61282358,0.00011424,2]
[334559768,1723213856462,-200.0,0.00011447,2]
[334559769,1723213856471,-200.0,0.00011447,2]
[334559770,1723213856481,-150.0,0.00011457,2]
[334559771,1723213856490,-366.61282358,0.00011566,2]
[334559772,1723213856502,-150.0,0.00011609,2]
[334559773,1723213856511,-150.0,0.00011609,2]
[334559774,1723213856521,-554.29385806,0.00011686,2]
[334559775,1723213856530,-587.0,0.00011707,2]
[334559776,1723213856540,-366.61282358,0.00011707,2]
[334559777,1723213856553,-433.0,0.00011708,2]
[334559778,1723213856563,-155.0,0.00011728,2]
[334559779,1723213856573,-150.0,0.00011761,2]
[334559780,1723213856582,-161029.7480986,0.000118,2]
[334559781,1723213856591,-366.61282358,0.00011848,2]
[334559782,1723213856600,-150.0,0.00011913,2]
[334559783,1723213856609,-200.0,0.00011973,2]
[334559784,1723213856619,-366.61282358,0.0001199,2]
[334559785,1723213856628,-5000.0,0.00012,2]
[334559786,1723213856638,-600.0,0.00012,2]
[334559787,1723213856647,-2087.09,0.00012,2]
[334559788,1723213856657,-2087.09,0.00012,2]
[334559789,1723213856666,-2087.09,0.00012,2]
[334559790,1723213856675,-2087.09,0.00012,2]
[334559791,1723213856684,-2087.09,0.00012,2]
[334559792,1723213856694,-2087.09,0.00012,2]
[334559793,1723213856703,-2087.09,0.00012,2]
[334559794,1723213856713,-2087.09,0.00012,2]
[334559795,1723213856722,-2087.09,0.00012,2]
[334559796,1723213856732,-2087.09,0.00012,2]
[334559797,1723213856742,-2087.09,0.00012,2]
[334559798,1723213856753,-2087.09,0.00012,2]
[334559799,1723213856763,-2087.09,0.00012,2]
[334559800,1723213856772,-2087.09,0.00012,2]
[334559801,1723213856782,-2087.09,0.00012,2]
[334559802,1723213856796,-2087.09,0.00012,2]
[334559803,1723213856807,-2087.09,0.00012,2]
[334559804,1723213856816,-2087.09,0.00012,2]
[334559805,1723213856826,-2087.09,0.00012,2]
[334559806,1723213856836,-2087.09,0.00012,2]
[334559807,1723213856846,-2087.09,0.00012,2]
[334559808,1723213856855,-2087.09,0.00012,2]
[334559809,1723213856864,-2087.09,0.00012,2]
[334559810,1723213856874,-2087.09,0.00012,2]
[334559811,1723213856884,-2087.09,0.00012,2]
[334559812,1723213856894,-2087.09,0.00012,2]
[334559813,1723213856903,-2087.09,0.00012,2]
[334559814,1723213856912,-2087.09,0.00012,2]
[334559815,1723213856923,-2087.09,0.00012,2]
[334559816,1723213856933,-2087.09,0.00012,2]
[334559817,1723213856943,-2087.09,0.00012,2]
[334559818,1723213856954,-2087.09,0.00012,2]
[334559819,1723213856964,-2087.09,0.00012,2]
[334559820,1723213856974,-2087.09,0.00012,2]
[334559821,1723213856983,-2087.09,0.00012,2]
[334559822,1723213857081,-2087.09,0.00012,2]
[334559823,1723213857091,-2087.09,0.00012,2]
[334559824,1723213857100,-2087.09,0.00012,2]
[334559825,1723213857110,-2087.09,0.00012,2]
[334559826,1723213857119,-2087.09,0.00012,2]
[334559827,1723213857129,-2087.09,0.00012,2]
[334559828,1723213857138,-2087.09,0.00012,2]
[334559829,1723213857147,-2087.09,0.00012,2]
[334559830,1723213857157,-2087.09,0.00012,2]
[334559831,1723213857167,-2087.09,0.00012,2]
[334559832,1723213857177,-2087.09,0.00012,2]
[334559833,1723213857187,-421.18,0.00012,2]
[334559834,1723213857196,-421.18,0.00012,2]
[334559835,1723213857205,-421.18,0.00012,2]
[334559836,1723213857214,-1009.37,0.00012,2]
[334559837,1723213857224,-1009.37,0.00012,2]
[334559838,1723213857233,-1009.37,0.00012,2]
[334559839,1723213857243,-1009.37,0.00012,2]
[334559840,1723213857252,-1009.37,0.00012,2]
[334559841,1723213857262,-1009.37,0.00012,2]
[334559842,1723213857272,-1009.37,0.00012,2]
[334559843,1723213857281,-1009.37,0.00012,2]
[334559844,1723213857291,-1009.37,0.00012,2]
[334559845,1723213857304,-1009.37,0.00012,2]
[334559846,1723213857313,-1009.37,0.00012,2]
[334559847,1723213857322,-1009.37,0.00012,2]
[334559848,1723213857331,-1009.37,0.00012,2]
[334559849,1723213857341,-1009.37,0.00012,2]
[334559850,1723213857350,-1009.37,0.00012,2]
[334559851,1723213857359,-1009.37,0.00012,2]
[334559852,1723213857368,-1009.37,0.00012,2]
[334559853,1723213857378,-1009.37,0.00012,2]
[334559854,1723213857387,-1009.37,0.00012,2]
[334559855,1723213857397,-1009.37,0.00012,2]
[334559856,1723213857406,-1009.37,0.00012,2]
[334559857,1723213857421,-1009.37,0.00012,2]
[334559858,1723213857430,-1009.37,0.00012,2]
[334559859,1723213857440,-1009.37,0.00012,2]
[334559860,1723213857449,-1009.37,0.00012,2]
[334559861,1723213857460,-1009.37,0.00012,2]
[334559862,1723213857469,-1009.37,0.00012,2]
[334559863,1723213857479,-1009.37,0.00012,2]
[334559864,1723213857490,-1009.37,0.00012,2]
[334559865,1723213857500,-1009.37,0.00012,2]
[334559866,1723213857509,-275.68,0.00012033,2]
[334559867,1723213857518,-150.0,0.00012065,2]
[334559868,1723213857528,-1000.0,0.00012084,2]
[334559869,1723213857538,-2490.42849,0.0001209,2]
[334559870,1723213857550,-447.93305646,0.00012121,2]
[334559871,1723213857560,-366.61282358,0.00012131,2]
[334559872,1723213857569,-197.7,0.00012143,2]
[334559873,1723213857579,-150.0,0.00012217,2]
[334559874,1723213857588,-150.0,0.00012217,2]
[334559875,1723213857597,-366.61282358,0.00012273,2]
[334559876,1723213857606,-350.72275191,0.00012342,2]
[334559877,1723213857616,-164.93,0.00012346,2]
[334559878,1723213857625,-2502.03117254,0.0001236,2]
[334559879,1723213857635,-5000.0,0.0001236,2]
[334559880,1723213857644,-190.68439965,0.0001236,2]
[334559881,1723213857653,-150.0,0.0001237,2]
[334559882,1723213857662,-366.61282358,0.00012414,2]
[334559883,1723213857672,-275.68,0.00012458,2]
[334559884,1723213857681,-155.0,0.0001246,2]
[334559885,1723213857691,-289.80724046,0.000125,2]
[334559886,1723213857700,-150.0,0.00012522,2]
[334559887,1723213857710,-366.61282358,0.00012556,2]
[334559888,1723213857719,-150.17084638,0.00012644,5]
[334559889,1723213857729,-155.31944284,0.00012665,2]
[334559890,1723213857738,-150.0,0.00012674,2]
[334559891,1723213857748,-420.82,0.00012674,2]
[334559892,1723213857757,-366.61282358,0.00012697,2]
[334559893,1723213857767,-362.37,0.00012704,2]
[334559894,1723213857776,-155.07724106,0.00012749,2]
[334559895,1723213857786,-150.0,0.0001275,2]
[334559896,1723213857799,-420.86,0.00012825,2]
[334559897,1723213857808,-686.05,0.00012825,2]
[334559898,1723213857818,-841.38,0.00012825,2]
[334559899,1723213857828,-420.86,0.00012825,2]
[334559900,1723213857838,-420.86,0.00012825,2]
[334559901,1723213857847,-420.86,0.00012825,2]
[334559902,1723213857858,-420.86,0.00012825,2]
[334559903,1723213857868,-150.0,0.00012826,2]
[334559904,1723213857878,-150.0,0.00012826,2]
[334559905,1723213857887,-155.0,0.00012826,2]
[334559906,1723213857897,-366.61282358,0.00012838,2]
[334559907,1723213857906,-823.0,0.00012877,2]
[334559908,1723213857915,-736.0,0.00012878,2]
[334559909,1723213857925,-153.0,0.0001288,2]
[334559910,1723213857935,-275.68,0.00012884,2]
[334559911,1723213857944,-179.99,0.00012893,2]
[334559912,1723213857953,-150.0,0.00012978,2]
[334559913,1723213857963,-366.61282358,0.0001298,2]
[334559914,1723213857972,-155.11635605,0.00013,2]
[334559915,1723213857982,-5000.0,0.00013,2]
[334559916,1723213857991,-15416.06779139,0.00013,2]
[334559917,1723213858001,-300.0,0.00013,2]
[334559918,1723213858011,-150.0,0.00013,2]
[334559919,1723213858020,-5040.71136608,0.0001305,2]
[334559920,1723213858030,-366.61282358,0.00013121,2]
[334559921,1723213858039,-150.0,0.0001313,2]
[334559922,1723213858058,-4712.12,0.000132,2]
[334559923,1723213858068,-366.61282358,0.00013263,2]
[334559924,1723213858078,-150.0,0.00013283,2]
[334559925,1723213858087,-1000.0,0.00013293,2]
[334559926,1723213858097,-275.68,0.0001331,2]
[334559927,1723213858106,-2490.42849,0.0001334,2]
[334559928,1723213858116,-400.0,0.00013342,2]
[334559929,1723213858125,-197.7,0.00013357,2]
[334559930,1723213858134,-155.0,0.000134,2]
[334559931,1723213858143,-366.61282358,0.00013404,2]
[334559932,1723213858153,-150.0,0.00013435,2]
[334559933,1723213858163,-150.0,0.00013435,2]
[334559934,1723213858171,-1000.0,0.000135,2]
[334559935,1723213858180,-1634.61,0.00013502,2]
[334559936,1723213858190,-366.61282358,0.00013545,2]
[334559937,1723213858199,-164.93,0.00013581,2]
[334559938,1723213858208,-150.0,0.00013587,2]
[334559939,1723213858217,-366.61282358,0.00013687,2]
[334559940,1723213858227,-1000.0,0.00013698,2]
[334559941,1723213858237,-1000.0,0.00013698,2]
[334559942,1723213858246,-1000.0,0.00013698,2]
[334559943,1723213858257,-1000.0,0.00013698,2]
[334559944,1723213858266,-1000.0,0.00013698,2]
[334559945,1723213858276,-1000.0,0.00013698,2]
[334559946,1723213858286,-1000.0,0.00013698,2]
[334559947,1723213858299,-1000.0,0.00013698,2]
[334559948,1723213858309,-1000.0,0.00013698,2]
[334559949,1723213858318,-1000.0,0.00013698,2]
[334559950,1723213858328,-1000.0,0.00013698,2]
[334559951,1723213858337,-1000.0,0.00013698,2]
[334559952,1723213858347,-1000.0,0.00013698,2]
[334559953,1723213858356,-1000.0,0.00013698,2]
[334559954,1723213858366,-527.43894205,0.00013698,2]
[334559955,1723213858375,-325.82374108,0.00013698,2]
[334559956,1723213858386,-151.0,0.00013699,2]
[334559957,1723213858396,-151.0,0.00013699,2]
[334559958,1723213858405,-151.0,0.00013699,2]
[334559959,1723213858417,-151.821979,0.00013699,2]
[334559960,1723213858432,-599.57,0.00013699,2]
[334559961,1723213858442,-15784.33,0.00013699,2]
[334559962,1723213858452,-200.0,0.00013699,2]
[334559963,1723213858463,-500.0,0.00013699,2]
[334559964,1723213858472,-2333.46,0.00013699,2]
[334559965,1723213858482,-2751.0,0.00013699,2]
[334559966,1723213858491,-8734.3,0.00013699,2]
[334559967,1723213858503,-300.0,0.00013699,2]
[334559968,1723213858513,-300.0,0.00013699,2]
[334559969,1723213858522,-304.32889701,0.00013699,2]
[334559970,1723213858531,-300.0,0.00013699,2]
[334559971,1723213858541,-300.0,0.00013699,2]
[334559972,1723213858554,-300.0,0.00013699,2]
[334559973,1723213858564,-301.94862212,0.00013699,2]
[334559974,1723213858573,-242541.0,0.000137,2]
[334559975,1723213858582,-202.60343091,0.0001372,2]
[334559976,1723213858591,-275.68,0.00013735,2]
[334559977,1723213858601,-150.0,0.00013739,2]
[334559978,1723213858611,-200.0,0.00013773,2]
[334559979,1723213858620,-200.0,0.00013773,2]
[334559980,1723213858630,-200.0,0.00013773,2]
[334559981,1723213858639,-150.0,0.00013773,2]
[334559982,1723213858649,-420.86,0.00013784,2]
[334559983,1723213858658,-1180.28,0.00013784,2]
[334559984,1723213858667,-835.07,0.00013784,2]
[334559985,1723213858676,-835.07,0.00013784,2]
[334559986,1723213858686,-1669.43,0.00013784,2]
[334559987,1723213858696,-835.07,0.00013784,2]
[334559988,1723213858705,-835.07,0.00013784,2]
[334559989,1723213858805,-835.07,0.00013784,2]
[334559990,1723213858815,-5677.85211816,0.000138,3]
[334559991,1723213858825,-150.0,0.000138,2]
[334559992,1723213858834,-366.61282358,0.00013828,2]
[334559993,1723213858844,-150.0,0.00013891,2]
[334559994,1723213858853,-300.0,0.00013899,2]
[334559995,1723213858863,-300.0,0.00013899,2]
[334559996,1723213858872,-46643.0983738,0.000139,3]
[334559997,1723213858882,-366.61282358,0.0001397,2]
[334559998,1723213858893,-312.94,0.00013973,2]
[334559999,1723213858902,-150.55,0.00013973,2]
[334560000,1723213858911,-162.52,0.00013973,2]
[334560001,1723213858921,-170.51,0.00013973,2]
[334560002,1723213858930,-224.68,0.00013973,2]
[334560003,1723213858941,-150.0,0.00013996,2]
[334560004,1723213858950,-150.0,0.00013996,2]
[334560005,1723213858960,-150.0,0.00013996,2]
[334560006,1723213858970,-150.0,0.00013996,2]
[334560007,1723213858979,-1894.0,0.00013996,2]
[334560008,1723213858988,-247.0,0.00013996,2]
[334560009,1723213858999,-562.123,0.00013996,2]
[334560010,1723213859009,-919.988,0.00013996,2]
[334560011,1723213859019,-1073.963,0.00013996,2]
[334560012,1723213859028,-266.83857948,0.00014,2]
[334560013,1723213859038,-5495.26040788,0.00014,2]
[334560014,1723213859052,-5000.0,0.00014,2]
[334560015,1723213859061,-538.41256352,0.00014,2]
[334560016,1723213859071,-650.0,0.00014,2]
[334560017,1723213859080,-150.0,0.00014043,2]
[334560018,1723213859089,-150.0,0.00014043,2]
[334560019,1723213859099,-366.61282358,0.00014111,2]
[334560020,1723213859109,-275.68,0.00014161,2]
[334560021,1723213859118,-1152.0,0.00014165,2]
[334560022,1723213859127,-589.0,0.00014165,2]
[334560023,1723213859137,-150.0,0.00014196,2]
[334560024,1723213859147,-2818.982069,0.00014247,2]
[334560025,1723213859157,-366.61282358,0.00014253,2]
[334560026,1723213859167,-382.71126557,0.00014321,2]
[334560027,1723213859177,-151.57,0.00014329,2]
[334560028,1723213859186,-150.0,0.00014348,2]
[334560029,1723213859196,-8734.3,0.00014384,2]
[334560030,1723213859206,-366.61282358,0.00014394,2]
[334560031,1723213859215,-150.0,0.000145,2]
[334560032,1723213859225,-150.0,0.000145,2]
[334560033,1723213859235,-150.0,0.000145,2]
[334560034,1723213859245,-1000.0,0.00014501,2]
[334560035,1723213859254,-366.61282358,0.00014535,2]
[334560036,1723213859264,-197.7,0.00014571,2]
[334560037,1723213859274,-2490.42849,0.0001458,2]
[334560038,1723213859283,-275.68,0.00014586,2]
[334560039,1723213859294,-150.0,0.00014652,2]
[334560040,1723213859309,-150.0,0.00014652,2]
[334560041,1723213859318,-366.61282358,0.00014677,2]
[334560042,1723213859328,-150.0,0.00014804,2]
[334560043,1723213859337,-186.84,0.00014808,2]
[334560044,1723213859347,-164.93,0.00014815,2]
[334560045,1723213859357,-366.61282358,0.00014818,2]
[334560046,1723213859366,-422.83707417,0.000149,2]
[334560047,1723213859376,-362.37,0.00014947,2]
[334560048,1723213859386,-150.0,0.00014957,2]
[334560049,1723213859396,-366.61282358,0.0001496,2]
[334560050,1723213859407,-155.96177381,0.00015,2]
[334560051,1723213859421,-282.38742003,0.00015,2]
[334560052,1723213859431,-16050.04661952,0.00015,7]
[334560053,1723213859441,-494.0,0.00015,2]